bitfinex-derivatives/quotes_ETHF0:USTF0_20250224
["timestamp","ask_amount","ask_price","bid_price","bid_amount"]
[1740363991491,0.72286001,2787.5,2787.2,3.77903725]
[1740363991686,0.71752,2787.3,2787.2,3.06150725]
[1740363992283,0.00538001,2787.5,2787.2,3.06150725]
[1740363992487,0.71752,2787.3,2787.2,3.06150725]
[1740363993285,0.71752,2787.3,2787.2,0.56150725]
[1740363993286,3.92532,2787.3,2787.2,0.56150725]
[1740363993488,0.71752,2787.3,2787.2,0.56150725]
[1740363993885,0.71752,2787.3,2787.2,7.25e-06]
[1740363997493,3.92532,2787.3,2787.2,7.25e-06]
[1740364000295,9.92956265,2787.3,2787.2,7.25e-06]
[1740364000499,10.44674959,2787.3,2787.2,7.25e-06]
[1740364001002,0.71786,2786.0,2785.9,3.0036]
[1740364001390,0.71793,2785.7,2785.6,43.287]
[1740364001701,0.71793,2785.7,2785.6,40.8]
[1740364001994,0.72328725,2785.9,2785.6,41.51796]
[1740364002198,0.00538725,2785.9,2785.6,40.8]
[1740364002392,0.71793,2785.7,2785.6,40.8]
[1740364002594,0.71792,2785.8,2785.6,40.8]
[1740364002999,0.71793,2785.7,2785.6,40.8]
[1740364003194,0.00538725,2785.9,2785.6,40.8]
[1740364003398,0.72327725,2785.9,2785.6,41.51795]
[1740364003901,0.00538725,2785.9,2785.6,40.8]
[1740364004098,0.71796,2785.6,2785.5,1.1293]
[1740364007108,0.71796,2785.6,2785.5,0.573]
[1740364007298,0.71798,2785.5,2785.4,2.48538725]
[1740364010306,0.71798,2785.5,2785.4,0.00538725]
[1740364013609,0.00538725,2785.9,2785.4,2.47638725]
[1740364013808,0.72328725,2785.9,2785.4,2.47638725]
[1740364014110,0.71791,2785.8,2785.6,0.71795]
[1740364014710,0.00538725,2785.9,2785.6,0.71796]
[1740364014908,0.00538725,2785.9,2785.6,0.5176]
[1740364015213,0.71792,2785.8,2785.6,1.23556]
[1740364015411,0.00538725,2785.9,2785.6,2.9876]
[1740364015608,0.72328725,2785.9,2785.7,0.71792]
[1740364015810,0.72328725,2785.9,2785.6,2.9876]
[1740364016115,0.71793,2785.7,2785.6,2.9876]
[1740364016410,0.71792,2785.8,2785.6,2.9876]
[1740364017004,0.71793,2785.7,2785.6,2.9876]
[1740364017402,0.00538725,2785.9,2785.4,0.00538725]
[1740364017807,0.71798,2785.5,2785.4,0.00538725]
[1740364019006,0.00538725,2785.9,2785.4,0.00538725]
[1740364019211,0.00538725,2785.9,2785.5,0.71797]
[1740364019415,0.71794,2785.7,2785.5,0.71797]
[1740364019605,0.00538725,2785.9,2785.4,0.00538725]
[1740364019806,0.72327725,2785.9,2785.6,0.71794]
[1740364020014,0.71791,2785.8,2785.6,0.71794]
[1740364020210,0.71791,2785.8,2785.4,0.00538725]
[1740364020211,0.00538725,2785.9,2785.4,0.00538725]
[1740364020417,0.72327725,2785.9,2785.6,0.71795]
[1740364020714,0.72327725,2785.9,2785.7,0.71793]
[1740364020715,0.00538725,2785.9,2785.7,0.71793]
[1740364020919,0.00538725,2785.9,2785.8,1.83351]
[1740364021213,0.00538725,2785.9,2785.8,1.1156]
[1740364021214,0.72326725,2785.9,2785.8,1.1156]
[1740364021417,0.00538725,2785.9,2785.8,1.1156]
[1740364021717,0.00538725,2785.9,2785.8,1.83351]
[1740364022012,0.00538725,2785.9,2785.8,2.38541]
[1740364022213,3.2078,2786.4,2785.8,1.6675]
[1740364022412,3.92557,2786.4,2786.0,0.71785]
[1740364022709,3.2078,2786.4,2786.1,3.18582]
[1740364023215,3.2078,2786.4,2786.2,0.7178]
[1740364023416,3.92552,2786.6,2786.2,0.7178]
[1740364023613,0.71776,2786.4,2786.1,2.468]
[1740364024019,0.71773,2786.5,2786.1,3.18582]
[1740364024220,3.92551,2786.6,2786.2,0.7178]
[1740364024614,3.2078,2786.9,2786.1,2.468]
[1740364024912,0.7178,2786.2,2786.1,2.468]
[1740364025312,0.71779,2786.3,2786.1,2.468]
[1740364025611,0.7178,2786.2,2785.8,2.38539]
[1740364025807,0.71788,2785.9,2785.8,1.6675]
[1740364026007,0.71788,2785.9,2785.8,4.1325]
[1740364027509,0.71788,2785.9,2785.8,1.6675]
[1740364027714,0.71788,2785.9,2785.8,3.5776]
[1740364027906,0.71788,2785.9,2785.8,0.5544]
[1740364028111,0.71791,2785.8,2785.7,2.462]
[1740364028308,0.71798,2785.5,2785.4,1.11878725]
[1740364028508,0.71798,2785.5,2785.4,0.00538725]
[1740364028910,3.2078,2786.0,2785.4,0.00538725]
[1740364029114,0.71795,2785.7,2785.4,0.00538725]
[1740364029415,3.2078,2786.2,2785.4,0.00538725]
[1740364029712,3.92576,2785.6,2785.5,2.466]
[1740364030121,0.71798,2785.5,2785.4,0.00538725]
[1740364031419,0.5182,2785.5,2784.9,0.71812]
[1740364031727,0.5182,2785.5,2784.7,1.1046]
[1740364031728,3.2078,2785.3,2784.7,1.1046]
[1740364032336,0.71813,2785.0,2784.7,1.1046]
[1740364032512,3.21318725,2785.3,2784.7,1.82817725]
[1740364032718,3.21318725,2785.3,2784.7,1.10998725]
[1740364033017,0.71817,2784.8,2784.7,0.00538725]
[1740364033219,0.71817,2784.8,2784.7,0.00125427]
[1740364034115,3.2078,2785.0,2784.7,0.00125427]
[1740364034317,3.92592,2785.0,2784.7,0.71943427]
[1740364034520,0.71814,2784.9,2784.7,0.00125427]
[1740364034716,3.2078,2785.0,2784.7,0.00125427]
[1740364035517,0.71817,2784.8,2784.7,0.00125427]
[1740364039326,3.2078,2785.0,2784.7,0.00125427]
[1740364039528,3.2078,2785.0,2784.7,0.71942427]
[1740364039824,3.2078,2785.0,2784.7,0.00125427]
[1740364040118,0.00538725,2785.3,2784.9,3.2078]
[1740364040323,0.71809,2785.1,2785.0,0.5575]
[1740364040518,0.00538725,2785.3,2785.0,0.5575]
[1740364040714,0.00538725,2785.3,2785.1,0.71808]
[1740364040919,0.00538725,2785.3,2785.2,0.71806]
[1740364041125,0.00538725,2785.3,2785.1,0.71807]
[1740364041326,0.00538725,2785.3,2785.2,0.71806]
[1740364041824,0.00538725,2785.3,2785.1,0.5336]
[1740364042024,0.00538725,2785.3,2785.2,2.475]
[1740364042523,0.00538725,2785.3,2784.8,3.0341]
[1740364042819,0.71814,2784.9,2784.8,3.0341]
[1740364043322,3.2078,2785.1,2784.9,0.71814]
[1740364043524,3.2078,2785.1,2784.8,3.0341]
[1740364043525,3.2078,2785.1,2784.8,2.476]
[1740364043821,3.2078,2785.1,2784.8,3.19415]
[1740364044029,0.00538725,2785.3,2785.0,0.7181]
[1740364044330,0.00538725,2785.3,2784.8,2.476]
[1740364044630,0.00538725,2785.3,2785.1,0.71808]
[1740364044822,0.00538725,2785.3,2785.2,0.71806]
[1740364045224,0.00538725,2785.3,2785.0,0.5676]
[1740364045417,0.00538725,2785.3,2784.8,2.476]
[1740364045625,0.71814,2784.9,2784.8,2.476]
[1740364045827,0.71817,2784.8,2784.6,3.4795]
[1740364046124,3.2078,2785.1,2784.7,2.47725427]
[1740364046325,1.27184725,2785.3,2784.7,2.47725427]
[1740364046526,1.27184725,2785.3,2784.9,0.71812]
[1740364046826,0.00538725,2785.3,2784.7,2.47725427]
[1740364047027,0.72342725,2785.3,2784.9,0.71812]
[1740364047417,0.00538725,2785.3,2784.7,2.47725427]
[1740364047723,0.00538725,2785.3,2785.2,0.71806]
[1740364047918,0.00538725,2785.3,2785.2,3.19306]
[1740364048318,0.00538725,2785.3,2785.2,6.40086]
[1740364048520,0.00538725,2785.3,2785.2,3.19306]
[1740364049126,0.00538725,2785.3,2785.2,2.475]
[1740364049317,0.00538725,2785.3,2785.0,1.2789]
[1740364049521,0.72343725,2785.3,2785.1,2.481]
[1740364049720,0.71806,2785.2,2785.1,2.481]
[1740364050526,0.00538725,2785.3,2784.8,5.6878]
[1740364050734,0.71814,2784.9,2784.8,5.6878]
[1740364052330,0.71814,2784.9,2784.8,3.2078]
[1740364053024,0.71817,2784.8,2784.7,0.00125427]
[1740364053224,3.2078,2785.0,2784.7,0.00125427]
[1740364053622,0.71814,2784.9,2784.7,0.00125427]
[1740364054433,3.2078,2785.0,2784.7,0.00125427]
[1740364054725,0.71816,2784.9,2784.7,0.00125427]
[1740364055318,0.71817,2784.8,2784.7,0.00125427]
[1740364056429,0.71815,2784.9,2784.7,0.00125427]
[1740364056930,0.71817,2784.8,2784.7,0.00125427]
[1740364057333,3.2078,2785.0,2784.7,2.47625427]
[1740364057529,3.2078,2785.0,2784.8,0.71815]
[1740364058335,3.21318725,2785.3,2784.7,5.68405427]
[1740364058632,3.21318725,2785.3,2785.1,0.71807]
[1740364058832,3.21318725,2785.3,2785.2,1.75736]
[1740364058833,0.00538725,2785.3,2785.2,1.75736]
[1740364059429,3.9257,2785.9,2785.2,1.0393]
[1740364059633,3.2078,2785.9,2785.3,0.5492]
[1740364059834,0.71794,2785.7,2785.3,42.06722]
[1740364060028,0.71792,2785.8,2785.4,0.71801]
[1740364060535,0.71792,2785.8,2785.3,0.5492]
[1740364060536,0.71795,2785.7,2785.3,1.26722]
[1740364060734,0.71792,2785.8,2785.4,0.718]
[1740364061837,0.71794,2785.7,2785.3,0.5492]
[1740364062439,3.21193298,2785.9,2785.3,0.5492]
[1740364062641,0.71792,2785.8,2785.4,0.71801]
[1740364062943,0.71791,2785.8,2785.5,2.471]
[1740364063333,3.21193298,2785.9,2785.5,2.471]
[1740364063534,0.71796,2785.6,2785.5,2.471]
[1740364065038,1.1339,2785.8,2785.2,1.0393]
[1740364065243,0.71803,2785.4,2785.2,3.5063]
[1740364065540,3.2078,2785.6,2785.2,3.5063]
[1740364065737,3.2078,2785.6,2785.4,0.718]
[1740364066037,3.2078,2785.6,2785.3,0.71802]
[1740364066234,3.92578,2785.6,2785.2,3.5063]
[1740364066429,0.71801,2785.4,2785.2,3.5063]
[1740364067034,3.2078,2785.6,2785.2,1.0393]
[1740364067235,0.71802,2785.4,2785.2,3.5033]
[1740364067543,3.2078,2785.6,2785.2,3.5033]
[1740364067838,3.2078,2785.6,2784.8,0.5218]
[1740364068143,0.71808,2785.2,2784.9,3.18013]
[1740364068339,0.71809,2785.1,2784.9,2.462]
[1740364068640,0.71814,2784.9,2784.8,1.1042]
[1740364068942,3.2078,2785.0,2784.8,1.1042]
[1740364069145,3.2078,2785.0,2784.7,0.00125427]
[1740364069338,0.71817,2784.8,2784.7,0.00125427]
[1740364073546,0.71837,2784.0,2783.9,3.0132]
[1740364074948,0.00538725,2784.2,2784.1,0.71835]
[1740364075546,0.00538725,2784.2,2783.9,3.0132]
[1740364075747,0.00538725,2784.2,2784.0,0.71836]
[1740364075948,0.72371725,2784.2,2783.9,3.73158]
[1740364076150,0.00538725,2784.2,2783.9,3.0132]
[1740364076349,0.71837,2784.1,2783.9,3.0132]
[1740364076548,0.00538725,2784.2,2783.9,3.0132]
[1740364076744,0.00538725,2784.2,2784.0,0.71837]
[1740364076950,0.00538725,2784.2,2783.9,3.73157]
[1740364077544,0.00538725,2784.2,2783.9,3.0132]
[1740364077750,0.00538725,2784.2,2784.0,0.71837]
[1740364078250,0.00538725,2784.2,2783.9,3.73158]
[1740364078452,0.00538725,2784.2,2783.9,3.0132]
[1740364078750,0.71836,2784.1,2783.9,3.0132]
[1740364079345,0.00538725,2784.2,2783.9,3.0132]
[1740364079542,0.72372725,2784.2,2783.9,3.0132]
[1740364080043,0.00538725,2784.2,2783.9,3.0132]
[1740364080243,0.00538725,2784.2,2784.1,0.71835]
[1740364080645,0.00538725,2784.2,2784.1,41.51835]
[1740364081446,0.72370725,2784.2,2784.1,40.8]
[1740364081747,0.00538725,2784.2,2783.9,0.5532]
[1740364082146,0.71836,2784.1,2783.9,0.5532]
[1740364082346,0.71836,2784.1,2784.0,40.8]
[1740364082944,0.71842,2783.8,2783.7,0.54758725]
[1740364083247,0.71842,2783.8,2783.7,0.00538725]
[1740364088854,0.7186,2783.1,2782.9,2.451]
[1740364089057,0.71863,2783.0,2782.9,2.451]
[1740364089763,3.2078,2783.3,2782.9,2.451]
[1740364090059,0.71863,2783.0,2782.9,2.451]
[1740364090665,0.5738,2783.2,2782.9,2.451]
[1740364090860,3.2078,2783.3,2782.9,2.451]
[1740364091051,0.71863,2783.1,2782.9,2.451]
[1740364091254,3.92636,2783.3,2783.0,0.71861]
[1740364091455,3.2078,2783.3,2782.9,2.451]
[1740364092159,3.2078,2783.3,2783.2,0.71858]
[1740364092762,3.2078,2783.6,2782.9,5.6588]
[1740364092960,2.451,2784.0,2783.9,0.7184]
[1740364093258,2.451,2784.0,2783.8,0.71841]
[1740364093459,2.451,2784.0,2783.3,1.5846]
[1740364093656,0.71841,2783.9,2783.5,0.71849]
[1740364093960,5.6588,2784.0,2783.6,0.71847]
[1740364094160,6.37718,2784.0,2783.6,0.71847]
[1740364094361,5.6588,2784.0,2783.4,40.8]
[1740364094659,5.6588,2784.0,2783.8,0.71841]
[1740364095055,6.0,2783.8,2783.4,3.2078]
[1740364095358,3.2078,2784.0,2783.8,0.71842]
[1740364095758,0.72371725,2784.2,2783.4,40.8]
[1740364096256,0.72371725,2784.2,2783.8,0.7184]
[1740364096455,0.00538725,2784.2,2783.4,40.8]
[1740364097162,0.71839,2784.0,2783.6,0.71847]
[1740364097355,0.00538725,2784.2,2783.4,40.8]
[1740364097763,0.71839,2784.0,2783.6,0.71847]
[1740364098660,0.00538725,2784.2,2783.4,40.8]
[1740364098860,0.72371725,2784.2,2783.8,0.7184]
[1740364099061,0.72371725,2784.2,2783.9,0.5181]
[1740364099366,0.00538725,2784.2,2783.9,1.23649]
[1740364099559,0.72371725,2784.2,2783.9,1.23649]
[1740364100764,0.00538725,2784.2,2784.1,0.71835]
[1740364104265,3.2078,2784.7,2784.6,0.71822]
[1740364105166,3.2078,2785.3,2785.2,0.71806]
[1740364105364,3.2078,2785.3,2784.7,1.1078]
[1740364105669,3.92584,2785.3,2785.0,0.72348725]
[1740364106269,0.71809,2785.1,2785.0,0.00538725]
[1740364106961,3.2078,2785.3,2785.0,0.00538725]
[1740364107158,3.2078,2785.3,2785.0,0.72348725]
[1740364107359,3.2078,2785.3,2785.0,0.00538725]
[1740364107767,3.2078,2785.3,2785.0,0.72347725]
[1740364107967,3.2078,2785.3,2785.1,0.71807]
[1740364108862,3.2078,2785.3,2785.2,0.71806]
[1740364109064,3.2078,2786.0,2785.9,0.71788]
[1740364109364,3.2078,2786.3,2785.5,2.455]
[1740364109571,3.2078,2786.3,2785.6,3.0099]
[1740364109967,0.71793,2785.7,2785.6,0.5539]
[1740364110161,0.71789,2785.9,2785.4,3.17399]
[1740364110368,0.71789,2785.9,2785.4,3.73328725]
[1740364110868,3.7773,2786.0,2785.4,3.01528725]
[1740364111070,0.71798,2785.5,2785.4,0.55928725]
[1740364111270,0.71798,2785.6,2785.4,0.55928725]
[1740364111466,3.2078,2785.7,2785.4,0.00538725]
[1740364111672,0.71798,2785.5,2785.4,0.00538725]
[1740364112270,0.71798,2785.5,2783.9,3.2078]
[1740364112271,8.455,2785.5,2783.9,3.2078]
[1740364112571,3.2078,2784.5,2784.1,0.5722]
[1740364112762,3.2078,2784.5,2784.0,2.457]
[1740364112968,0.5201,2784.4,2784.0,2.457]
[1740364113163,0.71833,2784.2,2784.0,2.457]
[1740364113367,0.5201,2784.4,2784.0,2.457]
[1740364113573,0.00538725,2784.4,2784.0,2.457]
[1740364113770,0.00538725,2784.4,2784.3,0.71829]
[1740364116272,0.00538725,2784.4,2784.1,0.5722]
[1740364116472,0.00538725,2784.4,2783.8,0.55008725]
[1740364116473,3.2078,2784.2,2783.8,0.55008725]
[1740364116773,3.75968725,2784.4,2783.8,0.55008725]
[1740364116973,0.7183,2784.3,2783.8,1.11438725]
[1740364117277,3.21318725,2784.4,2784.1,0.71833]
[1740364118380,3.21318725,2784.4,2784.2,0.5724]
[1740364118778,3.93146725,2784.4,2784.2,0.5724]
[1740364119073,3.21318725,2784.4,2784.2,0.5724]
[1740364119780,0.71829,2784.3,2784.2,0.5724]
[1740364119979,3.21318725,2784.4,2784.2,0.5724]
[1740364120173,3.93146725,2784.4,2784.2,0.5724]
[1740364121475,3.21318725,2784.4,2784.2,0.5724]
[1740364121778,0.00538725,2784.4,2784.3,0.71829]
[1740364122282,0.00538725,2784.4,2784.2,1.29071]
[1740364122879,0.00538725,2784.4,2784.2,0.5724]
[1740364123075,0.00538725,2784.4,2784.3,0.71829]
[1740364123280,0.00538725,2784.4,2784.3,1.25489]
[1740364123780,0.00538725,2784.4,2784.3,42.05489]
[1740364124269,0.00538725,2784.4,2784.3,1.25489]
[1740364128978,3.2078,2785.3,2784.9,0.71814]
[1740364129283,3.2078,2785.3,2785.2,0.71806]
[1740364130177,1.23783,2785.4,2785.1,0.71808]
[1740364130377,0.5198,2785.4,2785.1,0.71808]
[1740364131380,3.92579,2785.5,2785.1,0.71807]
[1740364132278,3.92579,2785.5,2784.9,1.0864]
[1740364132472,3.2078,2785.5,2784.9,1.0864]
[1740364132883,3.2078,2785.5,2785.3,0.71802]
[1740364133280,3.2078,2785.5,2784.9,1.0864]
[1740364133480,3.2078,2785.5,2785.4,0.71801]
[1740364134585,3.2078,2785.5,2785.0,3.2078]
[1740364134586,3.2078,2785.5,2785.3,0.71804]
[1740364134980,3.2078,2785.5,2785.0,3.2078]
[1740364135691,3.2078,2785.5,2785.3,0.71803]
[1740364135880,3.2078,2785.5,2785.4,0.71801]
[1740364136089,4.47632,2785.8,2785.4,0.71799]
[1740364136280,0.71795,2785.7,2785.3,0.71803]
[1740364136482,4.47632,2785.8,2785.5,0.71798]
[1740364136682,3.7584,2785.8,2785.4,0.5353]
[1740364136983,3.7584,2785.8,2785.6,0.71795]
[1740364137188,3.7584,2785.8,2785.5,1.24987]
[1740364137579,3.7584,2785.8,2785.5,0.5319]
[1740364137779,3.7584,2785.8,2785.6,0.71794]
[1740364138175,3.7584,2785.8,2785.5,0.5319]
[1740364138381,3.7584,2785.8,2785.6,0.71794]
[1740364139092,3.2078,2785.8,2785.5,0.5319]
[1740364139685,5.00122,2786.2,2785.9,0.71787]
[1740364139983,4.2834,2786.2,2785.6,2.432]
[1740364140187,0.71774,2786.5,2786.1,0.71783]
[1740364140378,0.71774,2786.5,2785.6,2.432]
[1740364140379,3.2078,2786.6,2786.3,0.71777]
[1740364140781,3.2078,2786.6,2786.0,2.9497]
[1740364140985,0.7178,2786.2,2786.1,0.5297]
[1740364141185,3.2078,2786.6,2786.1,0.5297]
[1740364141385,1.0895,2786.8,2786.2,0.71779]
[1740364141579,0.71775,2786.5,2786.1,1.24752]
[1740364141781,0.71771,2786.6,2786.2,0.71779]
[1740364142190,0.71771,2786.6,2786.2,0.71778]
[1740364142391,0.71777,2786.4,2786.1,0.5297]
[1740364143192,0.71779,2786.3,2786.1,0.5297]
[1740364143385,0.71778,2786.4,2786.1,0.5297]
[1740364143791,0.71778,2786.3,2786.1,0.5297]
[1740364144493,3.2078,2786.6,2786.1,0.5297]
[1740364144682,0.71777,2786.4,2786.1,0.5297]
[1740364145185,3.2078,2786.6,2786.1,0.5297]
[1740364145389,0.71777,2786.4,2786.1,0.5297]
[1740364145578,3.2078,2786.6,2786.1,0.5297]
[1740364145786,1.0895,2786.8,2786.1,3.7375]
[1740364145985,3.2078,2787.3,2786.4,3.2078]
[1740364146186,0.71757,2787.2,2786.5,3.4874]
[1740364146383,3.2078,2787.3,2786.5,3.4874]
[1740364146586,0.71761,2787.0,2786.6,0.71769]
[1740364146786,3.2078,2787.3,2786.7,0.5671]
[1740364147085,0.5651,2787.4,2786.7,3.7749]
[1740364147284,0.71753,2787.3,2786.9,0.71761]
[1740364147479,0.5651,2787.4,2787.0,2.428]
[1740364147686,0.71757,2787.1,2787.0,2.428]
[1740364150088,0.5396,2787.2,2786.7,0.00538725]
[1740364150089,0.71765,2786.8,2786.7,0.00538725]
[1740364150682,0.0040624,2787.1,2786.7,0.00538725]
[1740364151091,0.71765,2786.8,2786.7,0.56748725]
[1740364154102,0.71765,2786.8,2786.7,0.00538725]
[1740364156299,1.26005,2786.8,2786.7,0.00538725]
[1740364159803,1.26005,2786.8,2786.7,7.25e-06]
[1740364160901,7.26005,2786.8,2786.7,7.25e-06]
[1740364163696,1.26005,2786.8,2786.7,7.25e-06]
[1740364167303,0.71765,2786.8,2786.7,7.25e-06]
[1740364168409,0.71764,2786.9,2786.7,7.25e-06]
[1740364169003,0.71765,2786.8,2786.7,7.25e-06]
[1740364172008,3.21318001,2787.0,2786.7,7.25e-06]
[1740364172206,0.71765,2786.8,2786.7,7.25e-06]
[1740364172411,0.71764,2786.9,2786.7,40.80000725]
[1740364172711,0.71764,2786.9,2786.8,3.5055]
[1740364177111,3.21318001,2787.0,2786.9,0.71762]
[1740364177112,0.00538001,2787.0,2786.9,0.71762]
[1740364186229,0.00538001,2787.0,2786.8,6.4595]
[1740364186522,0.71762,2786.9,2786.8,4.0315]
[1740364186715,0.71762,2786.9,2786.8,5.9143]
[1740364186918,3.92542,2786.9,2786.8,2.954]
[1740364187715,3.92542,2786.9,2786.7,7.25e-06]
[1740364187716,3.2078,2786.9,2786.7,7.25e-06]
[1740364187922,0.71765,2786.8,2786.7,7.25e-06]
[1740364191724,6.71765,2786.8,2786.7,7.25e-06]
[1740364191927,9.14465,2786.8,2786.7,7.25e-06]
[1740364193237,9.42729658,2786.8,2786.7,7.25e-06]
[1740364193533,10.17757905,2786.8,2786.7,7.25e-06]
[1740364193928,9.89493247,2786.8,2786.7,7.25e-06]
[1740364194336,9.14465,2786.8,2786.7,7.25e-06]
[1740364195541,3.14465,2786.8,2786.7,7.25e-06]
[1740364196136,0.71765,2786.8,2786.7,7.25e-06]
[1740364200727,0.71765,2786.8,2782.2,19.43856751]
[1740364200728,0.27336568,2786.3,2785.3,0.5645]
[1740364200932,3.2078,2785.7,2785.3,0.5645]
[1740364201338,0.71798,2785.5,2785.4,0.5167]
[1740364201534,3.2078,2785.7,2785.4,0.5167]
[1740364201838,0.71798,2785.5,2785.4,0.5167]
[1740364202040,0.71798,2785.6,2785.4,0.5167]
[1740364202338,3.2078,2785.7,2785.4,0.5167]
[1740364202537,0.71797,2785.6,2785.4,0.5167]
[1740364202731,3.2078,2785.7,2785.4,0.5167]
[1740364202732,0.71798,2785.5,2785.4,0.5167]
[1740364204633,0.71801,2785.4,2785.3,0.00538725]
[1740364204838,3.92581,2785.4,2785.3,0.00538725]
[1740364205239,3.92581,2785.4,2785.3,7.25e-06]
[1740364205429,6.40281,2785.4,2785.3,7.25e-06]
[1740364205635,12.40281,2785.4,2785.3,7.25e-06]
[1740364205838,11.6848,2785.4,2784.3,0.522]
[1740364206034,3.2078,2784.6,2784.3,0.522]
[1740364206236,3.2078,2785.0,2784.7,0.71818]
[1740364206434,3.2078,2785.0,2784.4,2.481]
[1740364206640,0.71815,2784.9,2784.4,2.481]
[1740364206840,3.2078,2785.0,2784.4,2.481]
[1740364207032,3.2078,2784.7,2784.4,2.48638725]
[1740364207439,3.926,2784.7,2784.4,2.48638725]
[1740364208445,3.2078,2784.7,2784.4,3.20464725]
[1740364208645,0.00538725,2784.9,2784.5,0.5671]
[1740364208845,0.00538725,2784.9,2784.7,0.71817]
[1740364209338,0.71818,2784.8,2784.6,0.5601]
[1740364209540,0.00538725,2784.9,2784.6,0.5601]
[1740364209944,0.71818,2784.8,2784.6,0.5601]
[1740364210844,0.72353725,2784.9,2784.6,0.5601]
[1740364211039,0.71817,2784.8,2784.6,0.5601]
[1740364211240,0.71822,2784.6,2784.4,0.00538725]
[1740364211439,0.71822,2784.6,2784.4,0.52348725]
[1740364211642,0.71824,2784.5,2784.4,0.52348725]
[1740364211842,0.71824,2784.5,2784.4,0.00538725]
[1740364217750,1.79568,2784.5,2783.8,1.1226]
[1740364217949,3.9262,2783.9,2783.8,1.1226]
[1740364218148,3.2078,2783.9,2783.8,1.84102]
[1740364218348,0.71833,2784.2,2784.1,0.71835]
[1740364218349,3.2078,2784.2,2784.1,0.71835]
[1740364218545,3.2078,2784.2,2783.8,1.1226]
[1740364218758,3.2078,2784.2,2784.0,0.71836]
[1740364218958,3.2078,2784.2,2783.8,1.1226]
[1740364219156,3.2078,2784.2,2783.9,0.71838]
[1740364219355,3.2078,2784.2,2783.8,1.1226]
[1740364219555,0.71836,2784.1,2783.8,1.1226]
[1740364219856,0.71836,2784.1,2783.9,0.71839]
[1740364220652,0.7184,2783.9,2783.8,1.1226]
[1740364221053,3.2078,2784.2,2783.8,1.1226]
[1740364221252,0.71835,2784.1,2783.8,1.84101]
[1740364221552,3.92614,2784.2,2783.9,0.7184]
[1740364222059,3.2078,2784.2,2783.8,1.1226]
[1740364222554,3.2078,2784.6,2784.5,0.71824]
[1740364222755,3.2078,2784.6,2783.9,5.6788]
[1740364223061,3.92603,2784.6,2783.9,5.6788]
[1740364223654,3.92603,2784.6,2784.3,0.71828]
[1740364224260,3.92602,2784.6,2784.3,0.71829]
[1740364224759,0.71828,2784.4,2784.0,0.71837]
[1740364224952,0.71826,2784.5,2784.0,0.71836]
[1740364225355,3.2078,2784.6,2784.0,0.71836]
[1740364225561,0.71831,2784.3,2783.9,2.471]
[1740364225860,0.71831,2784.3,2784.0,0.71837]
[1740364226062,3.2078,2784.6,2784.0,0.71837]
[1740364226359,0.71828,2784.4,2783.9,2.471]
[1740364226860,0.71831,2784.3,2784.0,0.71837]
[1740364227260,0.71828,2784.4,2784.1,0.71834]
[1740364227458,0.71827,2784.5,2784.1,0.71834]
[1740364227658,0.71827,2784.5,2784.2,0.5368]
[1740364227861,0.71827,2784.5,2784.2,1.25511]
[1740364228063,3.2078,2784.6,2784.4,0.71825]
[1740364228258,3.2078,2784.6,2784.2,0.5368]
[1740364228458,3.92602,2784.6,2784.3,0.71828]
[1740364228662,3.2078,2784.6,2784.4,0.5612]
[1740364228962,3.2078,2784.6,2784.4,1.27947]
[1740364229264,3.92603,2784.6,2784.4,3.0212]
[1740364229468,3.2078,2784.6,2784.4,3.0212]
[1740364229765,0.00538725,2784.9,2784.4,3.0212]
[1740364229964,0.71824,2784.6,2784.4,3.0212]
[1740364230263,3.2078,2784.8,2784.4,3.0212]
[1740364230558,0.7182,2784.7,2784.4,3.0212]
[1740364230763,3.2078,2784.8,2784.4,3.0212]
[1740364230961,0.71823,2784.6,2784.4,3.0212]
[1740364231562,3.2078,2784.8,2784.4,3.0212]
[1740364231867,0.71821,2784.7,2784.4,3.73947]
[1740364232266,0.71823,2784.6,2784.4,3.0212]
[1740364232467,0.71821,2784.7,2784.4,3.0212]
[1740364232767,0.71823,2784.6,2784.4,3.0212]
[1740364233564,3.2078,2784.8,2784.4,3.73947]
[1740364233866,0.71821,2784.7,2784.4,3.73947]
[1740364234166,3.2078,2784.8,2784.4,3.0212]
[1740364234363,0.71823,2784.6,2784.4,3.0212]
[1740364234566,0.7182,2784.7,2784.4,3.73945]
[1740364235166,0.71822,2784.6,2784.4,3.0212]
[1740364235664,0.71829,2784.3,2784.2,0.5368]
[1740364235865,0.71835,2784.1,2784.0,2.9939]
[1740364236061,0.71835,2784.1,2784.0,0.5449]
[1740364236262,0.7184,2783.9,2783.8,1.0817]
[1740364236464,0.71838,2784.0,2783.8,1.0817]
[1740364236974,3.2078,2784.2,2783.8,1.0817]
[1740364237869,3.92613,2784.2,2783.9,0.71838]
[1740364238266,0.71836,2784.1,2783.8,1.80011]
[1740364238568,0.71839,2784.0,2783.8,1.0817]
[1740364238770,0.71836,2784.1,2783.8,1.80012]
[1740364239668,3.2078,2784.2,2783.8,1.0817]
[1740364239871,3.2078,2783.9,2783.7,0.00538725]
[1740364240067,1.28082,2783.8,2783.7,0.00538725]
[1740364240872,1.83602,2783.8,2783.7,0.00538725]
[1740364241671,0.7186,2783.1,2783.0,22.357]
[1740364241866,3.2078,2783.4,2782.8,1.1437]
[1740364242069,3.2078,2783.4,2782.8,0.5729]
[1740364242070,0.71866,2782.9,2782.8,0.5729]
[1740364242375,3.2078,2783.1,2782.4,44.54158]
[1740364242575,3.2078,2782.8,2782.4,44.54158]
[1740364242874,3.2078,2782.8,2782.5,0.00538725]
[1740364243262,3.9265,2782.8,2782.5,0.72413725]
[1740364243465,3.2078,2782.8,2782.5,0.00538725]
[1740364243666,3.92649,2782.8,2782.5,0.72413725]